[Event "Titled Tuesday Blitz March 28 Early 2023"]
[White "Raahul V S"]
[Black "Shimanov, Aleksandr"]
[WhiteFideId "25035525"]
[BlackFideId "4198603"]
[WhiteElo "2168"]
[BlackElo "2631"]
[Result "0-1"]
[Round "02"]
[TimeControl "180+2"]
[Date "2023.03.28"]
[WhiteClock "0:00:07"]
[BlackClock "0:00:07"]

1. c4 {[%clk 0:03:00]}  g6 {[%clk 0:02:59]} 2. Nc3 {[%clk 0:02:59]}  Bg7 {[%clk 0:02:59]} 3. g3 {[%clk 0:03:00]}  Nf6 {[%clk 0:02:54]} 4. Bg2 {[%clk 0:02:59]}  O-O {[%clk 0:02:54]} 5. e4 {[%clk 0:02:58]}  d6 {[%clk 0:02:52]} 6. Nge2 {[%clk 0:02:59]}  c5 {[%clk 0:02:48]} 7. O-O {[%clk 0:02:59]}  Nc6 {[%clk 0:02:48]} 8. d3 {[%clk 0:02:59]}  Rb8 {[%clk 0:02:44]} 9. h3 {[%clk 0:02:58]}  a6 {[%clk 0:02:44]} 10. Be3 {[%clk 0:02:58]}  b5 {[%clk 0:02:41]} 11. Qd2 {[%clk 0:02:58]}  b4 {[%clk 0:02:25]} 12. Nd5 {[%clk 0:02:49]}  Nd7 {[%clk 0:02:24]} 13. Bh6 {[%clk 0:02:16]}  e6 {[%clk 0:02:10]} 14. Bxg7 {[%clk 0:02:14]}  Kxg7 {[%clk 0:02:11]} 15. Ne3 {[%clk 0:02:14]}  e5 {[%clk 0:01:43]} 16. f4 {[%clk 0:02:10]}  f6 {[%clk 0:01:41]} 17. h4 {[%clk 0:01:59]}  Nb6 {[%clk 0:01:40]} 18. f5 {[%clk 0:01:57]}  Nd4 {[%clk 0:01:39]} 19. Nxd4 {[%clk 0:01:49]}  exd4 {[%clk 0:01:37]} 20. Ng4 {[%clk 0:01:48]}  gxf5 {[%clk 0:01:38]} 21. exf5 {[%clk 0:01:43]}  Kh8 {[%clk 0:01:32]} 22. Rae1 {[%clk 0:01:38]}  Qc7 {[%clk 0:01:24]} 23. h5 {[%clk 0:00:59]}  Qg7 {[%clk 0:01:20]} 24. Qf4 {[%clk 0:00:54]}  Nd7 {[%clk 0:00:48]} 25. h6 {[%clk 0:00:30]}  Qg5 {[%clk 0:00:48]} 26. Qxg5 {[%clk 0:00:27]}  fxg5 {[%clk 0:00:49]} 27. Re7 {[%clk 0:00:27]}  Rb6 {[%clk 0:00:42]} 28. Be4 {[%clk 0:00:12]}  d5 {[%clk 0:00:41]} 29. cxd5 {[%clk 0:00:11]}  Nf6 {[%clk 0:00:40]} 30. Ne5 {[%clk 0:00:10]}  Re8 {[%clk 0:00:25]} 31. Rc7 {[%clk 0:00:08]}  Kg8 {[%clk 0:00:18]} 32. Nc6 {[%clk 0:00:05]}  Bd7 {[%clk 0:00:17]} 33. g4 {[%clk 0:00:03]}  b3 {[%clk 0:00:15]} 34. axb3 {[%clk 0:00:03]}  Rxb3 {[%clk 0:00:15]} 35. Ra1 {[%clk 0:00:03]}  Rb6 {[%clk 0:00:14]} 36. b3 {[%clk 0:00:03]}  Rxb3 {[%clk 0:00:14]} 37. Rxa6 {[%clk 0:00:02]}  c4 {[%clk 0:00:14]} 38. dxc4 {[%clk 0:00:02]}  Rxe4 {[%clk 0:00:13]} 39. Ra8+ {[%clk 0:00:02]}  Re8 {[%clk 0:00:13]} 40. Rxe8+ {[%clk 0:00:02]}  Bxe8 {[%clk 0:00:14]} 41. Nxd4 {[%clk 0:00:02]}  Rg3+ {[%clk 0:00:13]} 42. Kf2 {[%clk 0:00:01]}  Rxg4 {[%clk 0:00:14]} 43. Ne6 {[%clk 0:00:02]}  Rh4 {[%clk 0:00:08]} 44. Ke3 {[%clk 0:00:03]}  Rxh6 {[%clk 0:00:07]} 45. Rg7+ {[%clk 0:00:04]}  Kh8 {[%clk 0:00:08]} 46. Re7 {[%clk 0:00:04]}  Rh4 {[%clk 0:00:07]} 47. Nxg5 {[%clk 0:00:05]}  h6 {[%clk 0:00:07]} 48. d6 {[%clk 0:00:06]}  hxg5 {[%clk 0:00:07]} 49. c5 {[%clk 0:00:07]}  Nd5+ {[%clk 0:00:05]} 50. Kd3 {[%clk 0:00:06]}  Nxe7 {[%clk 0:00:06]} 51. dxe7 {[%clk 0:00:07]}  Kg7 {[%clk 0:00:07]} 0-1


[Site "https://www.chess.com"]

[Event "Titled Tuesday Blitz March 28 Early 2023"]
[White "Grigoriants, Sergey"]
[Black "Aslanov, Umid"]
[WhiteFideId "4130804"]
[BlackFideId "13412620"]
[WhiteElo "2502"]
[BlackElo "2103"]
[Result "1-0"]
[Round "02"]
[TimeControl "180+2"]
[Date "2023.03.28"]
[WhiteClock "0:00:08"]
[BlackClock "0:00:03"]

1. d4 {[%clk 0:03:00]}  d5 {[%clk 0:02:59]} 2. c4 {[%clk 0:03:00]}  e6 {[%clk 0:03:00]} 3. Nc3 {[%clk 0:02:59]}  Be7 {[%clk 0:02:59]} 4. Nf3 {[%clk 0:02:57]}  Nf6 {[%clk 0:03:00]} 5. Bf4 {[%clk 0:02:58]}  O-O {[%clk 0:03:00]} 6. a3 {[%clk 0:02:58]}  b6 {[%clk 0:03:00]} 7. e3 {[%clk 0:02:53]}  dxc4 {[%clk 0:02:59]} 8. Bxc4 {[%clk 0:02:52]}  Ba6 {[%clk 0:02:58]} 9. Bxa6 {[%clk 0:02:40]}  Nxa6 {[%clk 0:02:59]} 10. Qe2 {[%clk 0:02:37]}  Qc8 {[%clk 0:02:59]} 11. Rc1 {[%clk 0:02:36]}  Qb7 {[%clk 0:02:53]} 12. O-O {[%clk 0:02:17]}  c5 {[%clk 0:02:53]} 13. Rfd1 {[%clk 0:02:15]}  Rfd8 {[%clk 0:02:52]} 14. Nb5 {[%clk 0:02:12]}  Rac8 {[%clk 0:02:47]} 15. h3 {[%clk 0:02:12]}  h6 {[%clk 0:02:44]} 16. Ne5 {[%clk 0:02:06]}  Nd5 {[%clk 0:02:37]} 17. Bg3 {[%clk 0:02:02]}  cxd4 {[%clk 0:02:29]} 18. Nxd4 {[%clk 0:01:57]}  Nc5 {[%clk 0:02:19]} 19. Qf3 {[%clk 0:01:40]}  Bf6 {[%clk 0:02:09]} 20. b4 {[%clk 0:01:37]}  Na4 {[%clk 0:02:05]} 21. Ndc6 {[%clk 0:01:26]}  Re8 {[%clk 0:01:29]} 22. e4 {[%clk 0:01:24]}  Ndc3 {[%clk 0:01:24]} 23. Rd7 {[%clk 0:01:18]}  Rc7 {[%clk 0:01:17]} 24. Rxc7 {[%clk 0:01:07]}  Qxc7 {[%clk 0:01:17]} 25. Rxc3 {[%clk 0:01:06]}  Nxc3 {[%clk 0:01:17]} 26. Qxc3 {[%clk 0:01:07]}  a6 {[%clk 0:01:12]} 27. a4 {[%clk 0:01:07]}  b5 {[%clk 0:01:10]} 28. axb5 {[%clk 0:01:07]}  axb5 {[%clk 0:01:11]} 29. Qc5 {[%clk 0:01:07]}  Qb7 {[%clk 0:00:54]} 30. Ng4 {[%clk 0:01:03]}  Bg5 {[%clk 0:00:42]} 31. h4 {[%clk 0:00:52]}  Rc8 {[%clk 0:00:42]} 32. hxg5 {[%clk 0:00:46]}  Qxc6 {[%clk 0:00:37]} 33. Qxc6 {[%clk 0:00:43]}  Rxc6 {[%clk 0:00:37]} 34. gxh6 {[%clk 0:00:44]}  gxh6 {[%clk 0:00:36]} 35. f3 {[%clk 0:00:39]}  Rc1+ {[%clk 0:00:34]} 36. Kh2 {[%clk 0:00:39]}  Rb1 {[%clk 0:00:33]} 37. Bd6 {[%clk 0:00:36]}  Kg7 {[%clk 0:00:33]} 38. Bc5 {[%clk 0:00:36]}  f5 {[%clk 0:00:30]} 39. exf5 {[%clk 0:00:36]}  exf5 {[%clk 0:00:31]} 40. Ne3 {[%clk 0:00:34]}  Kf6 {[%clk 0:00:27]} 41. Nd5+ {[%clk 0:00:35]}  Ke5 {[%clk 0:00:27]} 42. Nc3 {[%clk 0:00:36]}  Rc1 {[%clk 0:00:24]} 43. Nxb5 {[%clk 0:00:36]}  Kd5 {[%clk 0:00:21]} 44. Nd4 {[%clk 0:00:33]}  f4 {[%clk 0:00:18]} 45. Ne2 {[%clk 0:00:32]}  Rc4 {[%clk 0:00:19]} 46. Kh3 {[%clk 0:00:32]}  h5 {[%clk 0:00:17]} 47. Kh4 {[%clk 0:00:27]}  Ke5 {[%clk 0:00:17]} 48. Bd4+ {[%clk 0:00:22]}  Kf5 {[%clk 0:00:16]} 49. Bc3 {[%clk 0:00:22]}  Rc8 {[%clk 0:00:08]} 50. Kxh5 {[%clk 0:00:15]}  Rg8 {[%clk 0:00:03]} 51. Nd4+ {[%clk 0:00:10]}  Ke5 {[%clk 0:00:03]} 52. b5 {[%clk 0:00:08]} 1-0


[Site "https://www.chess.com"]

[Event "Titled Tuesday Blitz March 28 Early 2023"]
[White "Rustemov, Alexander"]
[Black "Araujo Sanchez, Josue"]
[WhiteFideId "4119002"]
[BlackFideId "6416896"]
[WhiteElo "2871"]
[BlackElo "2416"]
[Result "1/2-1/2"]
[Round "02"]
[TimeControl "180+2"]
[Date "2023.03.28"]
[WhiteClock "0:00:05"]
[BlackClock "0:00:08"]

1. d4 {[%clk 0:03:00]}  Nf6 {[%clk 0:02:58]} 2. c4 {[%clk 0:03:00]}  e6 {[%clk 0:02:58]} 3. Nf3 {[%clk 0:03:00]}  Bb4+ {[%clk 0:02:58]} 4. Bd2 {[%clk 0:03:00]}  Qe7 {[%clk 0:02:58]} 5. g3 {[%clk 0:03:00]}  O-O {[%clk 0:02:57]} 6. Bg2 {[%clk 0:02:59]}  d5 {[%clk 0:02:57]} 7. Qb3 {[%clk 0:02:57]}  c5 {[%clk 0:02:43]} 8. Bxb4 {[%clk 0:02:53]}  cxb4 {[%clk 0:02:43]} 9. Nbd2 {[%clk 0:02:36]}  Nc6 {[%clk 0:02:40]} 10. O-O {[%clk 0:02:34]}  Rd8 {[%clk 0:02:34]} 11. e3 {[%clk 0:02:31]}  b6 {[%clk 0:00:50]} 12. Rfc1 {[%clk 0:02:20]}  Na5 {[%clk 0:00:48]} 13. Qd1 {[%clk 0:02:16]}  Ba6 {[%clk 0:00:43]} 14. Ne5 {[%clk 0:02:00]}  Rac8 {[%clk 0:00:41]} 15. cxd5 {[%clk 0:01:53]}  exd5 {[%clk 0:00:26]} 16. Bh3 {[%clk 0:01:50]}  Rxc1 {[%clk 0:00:20]} 17. Rxc1 {[%clk 0:01:51]}  g6 {[%clk 0:00:19]} 18. Qc2 {[%clk 0:01:46]}  Ne8 {[%clk 0:00:16]} 19. Qa4 {[%clk 0:01:30]}  f6 {[%clk 0:00:12]} 20. Nc6 {[%clk 0:01:26]}  Qc7 {[%clk 0:00:05]} 21. Rc2 {[%clk 0:00:01]}  Nxc6 {[%clk 0:00:04]} 22. Qxc6 {[%clk 0:00:02]}  Qxc6 {[%clk 0:00:04]} 23. Rxc6 {[%clk 0:00:03]}  Bb7 {[%clk 0:00:04]} 24. Rc2 {[%clk 0:00:03]}  Kf7 {[%clk 0:00:03]} 25. b3 {[%clk 0:00:02]}  Ke7 {[%clk 0:00:04]} 26. Kf1 {[%clk 0:00:03]}  Kd6 {[%clk 0:00:04]} 27. Ke1 {[%clk 0:00:03]}  a5 {[%clk 0:00:03]} 28. Nf3 {[%clk 0:00:03]}  Bc6 {[%clk 0:00:04]} 29. Kd2 {[%clk 0:00:03]}  Bd7 {[%clk 0:00:04]} 30. Bf1 {[%clk 0:00:02]}  Nc7 {[%clk 0:00:05]} 31. Ne1 {[%clk 0:00:02]}  Nb5 {[%clk 0:00:05]} 32. Bxb5 {[%clk 0:00:01]}  Bxb5 {[%clk 0:00:05]} 33. Ng2 {[%clk 0:00:01]}  Bd7 {[%clk 0:00:05]} 34. h4 {[%clk 0:00:01]}  Re8 {[%clk 0:00:06]} 35. Nf4 {[%clk 0:00:02]}  Rd8 {[%clk 0:00:06]} 36. Nd3 {[%clk 0:00:02]}  Re8 {[%clk 0:00:06]} 37. Rc1 {[%clk 0:00:02]}  Rd8 {[%clk 0:00:06]} 38. a3 {[%clk 0:00:03]}  bxa3 {[%clk 0:00:06]} 39. Ra1 {[%clk 0:00:04]}  Rc8 {[%clk 0:00:07]} 40. Rxa3 {[%clk 0:00:04]}  Bf5 {[%clk 0:00:07]} 41. Ra1 {[%clk 0:00:04]}  Rc7 {[%clk 0:00:07]} 42. Rc1 {[%clk 0:00:04]}  Bxd3 {[%clk 0:00:07]} 43. Rxc7 {[%clk 0:00:04]}  Kxc7 {[%clk 0:00:08]} 44. Kxd3 {[%clk 0:00:04]}  f5 {[%clk 0:00:08]} 45. f3 {[%clk 0:00:04]}  Kd6 {[%clk 0:00:09]} 46. Kc3 {[%clk 0:00:05]}  b5 {[%clk 0:00:09]} 47. Kd3 {[%clk 0:00:05]}  Kc6 {[%clk 0:00:08]} 48. Kc3 {[%clk 0:00:05]}  Kd6 {[%clk 0:00:08]} 49. Kd3 {[%clk 0:00:05]}  Ke6 {[%clk 0:00:09]} 50. Kc3 {[%clk 0:00:05]}  Kd6 {[%clk 0:00:08]} 1/2-1/2


[Site "https://www.chess.com"]

[Event "Titled Tuesday Blitz March 28 Early 2023"]
[White "Chigaev, Maksim"]
[Black "Tica, Sven"]
[WhiteFideId "4108116"]
[BlackFideId "14526948"]
[WhiteElo "2547"]
[BlackElo "2348"]
[Result "0-1"]
[Round "02"]
[TimeControl "180+2"]
[Date "2023.03.28"]
[WhiteClock "0:00:13"]
[BlackClock "0:01:12"]

1. Nf3 {[%clk 0:03:00]}  g6 {[%clk 0:03:00]} 2. e4 {[%clk 0:02:59]}  Bg7 {[%clk 0:02:59]} 3. d4 {[%clk 0:02:59]}  d6 {[%clk 0:03:00]} 4. Nc3 {[%clk 0:03:00]}  a6 {[%clk 0:03:00]} 5. a4 {[%clk 0:02:59]}  Nd7 {[%clk 0:03:00]} 6. Bc4 {[%clk 0:02:59]}  e6 {[%clk 0:03:00]} 7. O-O {[%clk 0:02:59]}  Ne7 {[%clk 0:02:59]} 8. Re1 {[%clk 0:02:58]}  h6 {[%clk 0:02:59]} 9. Ne2 {[%clk 0:02:58]}  b6 {[%clk 0:03:00]} 10. Ng3 {[%clk 0:02:58]}  Bb7 {[%clk 0:03:00]} 11. c3 {[%clk 0:02:59]}  O-O {[%clk 0:02:56]} 12. Bb3 {[%clk 0:02:59]}  e5 {[%clk 0:02:56]} 13. h4 {[%clk 0:02:58]}  c5 {[%clk 0:02:54]} 14. h5 {[%clk 0:02:52]}  g5 {[%clk 0:02:52]} 15. Nxg5 {[%clk 0:02:36]}  hxg5 {[%clk 0:02:44]} 16. Bxg5 {[%clk 0:02:37]}  exd4 {[%clk 0:02:44]} 17. Nf5 {[%clk 0:02:08]}  Bf6 {[%clk 0:02:44]} 18. Qg4 {[%clk 0:01:54]}  Ne5 {[%clk 0:02:42]} 19. Bxf6+ {[%clk 0:00:43]}  Nxg4 {[%clk 0:02:40]} 20. Bxe7 {[%clk 0:00:44]}  Qd7 {[%clk 0:02:24]} 21. cxd4 {[%clk 0:00:43]}  Rfe8 {[%clk 0:02:21]} 22. Bd1 {[%clk 0:00:31]}  Rxe7 {[%clk 0:01:17]} 23. Bxg4 {[%clk 0:00:31]}  Kh8 {[%clk 0:01:18]} 24. f3 {[%clk 0:00:27]}  Rg8 {[%clk 0:01:17]} 25. dxc5 {[%clk 0:00:17]}  Rxg4 {[%clk 0:01:14]} 26. fxg4 {[%clk 0:00:17]}  Rxe4 {[%clk 0:01:12]} 27. cxd6 {[%clk 0:00:13]} 0-1


[Site "https://www.chess.com"]

[Event "Titled Tuesday Blitz March 28 Early 2023"]
[White "Guerrero Olmos, Sergio"]
[Black "demon64fields"]
[WhiteFideId "2257238"]
[WhiteElo "2266"]
[BlackElo "2863"]
[Result "1-0"]
[Round "02"]
[TimeControl "180+2"]
[Date "2023.03.28"]
[WhiteClock "0:00:04"]
[BlackClock "0:00:13"]

1. d4 {[%clk 0:03:00]}  g6 {[%clk 0:02:58]} 2. Nf3 {[%clk 0:03:00]}  Bg7 {[%clk 0:02:59]} 3. Bf4 {[%clk 0:03:01]}  d6 {[%clk 0:02:58]} 4. e3 {[%clk 0:03:01]}  Nd7 {[%clk 0:02:59]} 5. h3 {[%clk 0:03:01]}  e5 {[%clk 0:02:59]} 6. Bh2 {[%clk 0:03:02]}  Qe7 {[%clk 0:02:59]} 7. Be2 {[%clk 0:03:02]}  Ngf6 {[%clk 0:02:59]} 8. O-O {[%clk 0:03:02]}  O-O {[%clk 0:03:00]} 9. c4 {[%clk 0:03:03]}  Ne4 {[%clk 0:02:59]} 10. Nbd2 {[%clk 0:03:01]}  Nxd2 {[%clk 0:02:59]} 11. Qxd2 {[%clk 0:03:00]}  b6 {[%clk 0:02:58]} 12. Rac1 {[%clk 0:02:57]}  Bb7 {[%clk 0:02:57]} 13. b4 {[%clk 0:02:48]}  a5 {[%clk 0:02:56]} 14. a3 {[%clk 0:02:45]}  f5 {[%clk 0:02:54]} 15. c5 {[%clk 0:02:42]}  dxc5 {[%clk 0:02:29]} 16. bxc5 {[%clk 0:02:27]}  bxc5 {[%clk 0:02:28]} 17. dxe5 {[%clk 0:01:53]}  Nxe5 {[%clk 0:02:22]} 18. Nxe5 {[%clk 0:01:51]}  Bxe5 {[%clk 0:02:23]} 19. Bxe5 {[%clk 0:01:41]}  Qxe5 {[%clk 0:02:24]} 20. Rc3 {[%clk 0:01:25]}  f4 {[%clk 0:02:03]} 21. Rfc1 {[%clk 0:01:14]}  fxe3 {[%clk 0:01:51]} 22. Rxe3 {[%clk 0:01:09]}  Qf4 {[%clk 0:01:36]} 23. Bc4+ {[%clk 0:01:06]}  Kg7 {[%clk 0:01:31]} 24. Qb2+ {[%clk 0:00:48]}  Kh6 {[%clk 0:01:31]} 25. Re7 {[%clk 0:00:43]}  Rab8 {[%clk 0:00:58]} 26. Qg7+ {[%clk 0:00:38]}  Kg5 {[%clk 0:00:58]} 27. h4+ {[%clk 0:00:20]}  Kf5 {[%clk 0:00:31]} 28. Bd3+ {[%clk 0:00:13]}  Kg4 {[%clk 0:00:28]} 29. Rc4 {[%clk 0:00:10]}  Be4 {[%clk 0:00:23]} 30. f3+ {[%clk 0:00:07]}  Kg3 {[%clk 0:00:23]} 31. Rcxe4 {[%clk 0:00:05]}  Qc1+ {[%clk 0:00:16]} 32. Bf1 {[%clk 0:00:05]}  Rf4 {[%clk 0:00:14]} 33. Qe5 {[%clk 0:00:04]}  h6 {[%clk 0:00:12]} 34. Rxf4 {[%clk 0:00:04]}  Qxf4 {[%clk 0:00:13]} 35. Qe1# {[%clk 0:00:04]} 1-0


[Site "https://www.chess.com"]

[Event "Titled Tuesday Blitz March 28 Early 2023"]
[White "Tokhirjonova, Gulrukhbegim"]
[Black "Moussard, Jules"]
[WhiteFideId "14203626"]
[BlackFideId "642908"]
[WhiteElo "2268"]
[BlackElo "2610"]
[Result "0-1"]
[Round "02"]
[TimeControl "180+2"]
[Date "2023.03.28"]
[WhiteClock "0:00:12"]
[BlackClock "0:01:05"]

1. c4 {[%clk 0:02:43]}  e5 {[%clk 0:02:55]} 2. Nc3 {[%clk 0:02:41]}  Nf6 {[%clk 0:02:50]} 3. Nf3 {[%clk 0:02:39]}  Nc6 {[%clk 0:02:50]} 4. e4 {[%clk 0:02:37]}  h6 {[%clk 0:02:46]} 5. d4 {[%clk 0:02:37]}  exd4 {[%clk 0:02:46]} 6. Nxd4 {[%clk 0:02:37]}  Bb4 {[%clk 0:02:44]} 7. f3 {[%clk 0:02:28]}  O-O {[%clk 0:02:42]} 8. Be2 {[%clk 0:02:28]}  d6 {[%clk 0:02:35]} 9. Be3 {[%clk 0:02:25]}  Re8 {[%clk 0:02:31]} 10. O-O {[%clk 0:02:10]}  Bc5 {[%clk 0:02:30]} 11. Kh1 {[%clk 0:02:06]}  Nxd4 {[%clk 0:02:29]} 12. Bxd4 {[%clk 0:02:06]}  Bxd4 {[%clk 0:02:30]} 13. Qxd4 {[%clk 0:02:06]}  Bd7 {[%clk 0:02:28]} 14. Rad1 {[%clk 0:02:05]}  Bc6 {[%clk 0:02:26]} 15. b4 {[%clk 0:02:04]}  b6 {[%clk 0:02:25]} 16. a4 {[%clk 0:01:48]}  a5 {[%clk 0:02:23]} 17. b5 {[%clk 0:01:48]}  Bb7 {[%clk 0:02:21]} 18. Nd5 {[%clk 0:01:48]}  Nd7 {[%clk 0:02:21]} 19. Ne3 {[%clk 0:01:40]}  Qf6 {[%clk 0:02:17]} 20. Qxf6 {[%clk 0:01:39]}  Nxf6 {[%clk 0:02:18]} 21. Nd5 {[%clk 0:01:38]}  Bxd5 {[%clk 0:02:17]} 22. cxd5 {[%clk 0:01:38]}  Nd7 {[%clk 0:02:18]} 23. Rd4 {[%clk 0:01:32]}  f5 {[%clk 0:02:16]} 24. Bd3 {[%clk 0:01:30]}  fxe4 {[%clk 0:02:15]} 25. Bxe4 {[%clk 0:01:27]}  Nc5 {[%clk 0:02:14]} 26. h4 {[%clk 0:01:24]}  Re5 {[%clk 0:02:12]} 27. Bg6 {[%clk 0:01:18]}  Rf8 {[%clk 0:02:09]} 28. Kh2 {[%clk 0:01:15]}  Rf6 {[%clk 0:02:08]} 29. h5 {[%clk 0:01:15]}  Kf8 {[%clk 0:02:03]} 30. g4 {[%clk 0:01:07]}  Nb3 {[%clk 0:01:53]} 31. Rdd1 {[%clk 0:00:54]}  Rf4 {[%clk 0:01:51]} 32. Kg3 {[%clk 0:00:49]}  Rxa4 {[%clk 0:01:50]} 33. f4 {[%clk 0:00:47]}  Re3+ {[%clk 0:01:50]} 34. Rf3 {[%clk 0:00:46]}  Rxf3+ {[%clk 0:01:50]} 35. Kxf3 {[%clk 0:00:46]}  Nd4+ {[%clk 0:01:51]} 36. Kf2 {[%clk 0:00:45]}  Ra2+ {[%clk 0:01:43]} 37. Ke3 {[%clk 0:00:43]}  Nxb5 {[%clk 0:01:42]} 38. Re1 {[%clk 0:00:39]}  Ke7 {[%clk 0:01:38]} 39. Kd3+ {[%clk 0:00:36]}  Kd8 {[%clk 0:01:38]} 40. Re8+ {[%clk 0:00:35]}  Kd7 {[%clk 0:01:39]} 41. Rg8 {[%clk 0:00:33]}  Ra3+ {[%clk 0:01:30]} 42. Kc4 {[%clk 0:00:28]}  Nc3 {[%clk 0:01:30]} 43. Bf5+ {[%clk 0:00:23]}  Ke7 {[%clk 0:01:29]} 44. Rxg7+ {[%clk 0:00:23]}  Kf8 {[%clk 0:01:25]} 45. Rxc7 {[%clk 0:00:23]}  b5+ {[%clk 0:01:26]} 46. Kd4 {[%clk 0:00:21]}  Ne2+ {[%clk 0:01:26]} 47. Ke4 {[%clk 0:00:20]}  Ng3+ {[%clk 0:01:27]} 48. Kd4 {[%clk 0:00:21]}  Ra4+ {[%clk 0:01:14]} 49. Ke3 {[%clk 0:00:19]}  Nxf5+ {[%clk 0:01:15]} 50. gxf5 {[%clk 0:00:20]}  Rc4 {[%clk 0:01:12]} 51. Ra7 {[%clk 0:00:20]}  a4 {[%clk 0:01:12]} 52. f6 {[%clk 0:00:18]}  Rb4 {[%clk 0:01:06]} 53. Kf3 {[%clk 0:00:16]}  Rd4 {[%clk 0:01:06]} 54. Kg4 {[%clk 0:00:13]}  Rxd5 {[%clk 0:01:06]} 55. Rb7 {[%clk 0:00:12]}  a3 {[%clk 0:01:05]} 56. Ra7 {[%clk 0:00:12]}  b4 {[%clk 0:01:05]} 57. Ra4 {[%clk 0:00:13]}  Rb5 {[%clk 0:01:05]} 58. f5 {[%clk 0:00:10]}  b3 {[%clk 0:01:04]} 59. Rxa3 {[%clk 0:00:10]}  b2 {[%clk 0:01:04]} 60. Ra8+ {[%clk 0:00:11]}  Kf7 {[%clk 0:01:05]} 61. Ra7+ {[%clk 0:00:12]}  Kxf6 {[%clk 0:01:05]} 0-1


[Site "https://www.chess.com"]

[Event "Titled Tuesday Blitz March 28 Early 2023"]
[White "Kovalev, Vladislav"]
[Black "Kaidanov, Gregory"]
[WhiteFideId "13504398"]
[BlackFideId "2008564"]
[WhiteElo "2555"]
[BlackElo "2547"]
[Result "1-0"]
[Round "02"]
[TimeControl "180+2"]
[Date "2023.03.28"]
[WhiteClock "0:00:15"]
[BlackClock "0:00:22"]

1. e4 {[%clk 0:03:00]}  e5 {[%clk 0:02:59]} 2. Nf3 {[%clk 0:03:00]}  Nc6 {[%clk 0:03:00]} 3. Bb5 {[%clk 0:02:59]}  a6 {[%clk 0:03:00]} 4. Ba4 {[%clk 0:02:59]}  Nf6 {[%clk 0:03:00]} 5. O-O {[%clk 0:03:00]}  Nxe4 {[%clk 0:03:00]} 6. d4 {[%clk 0:02:59]}  b5 {[%clk 0:03:00]} 7. Bb3 {[%clk 0:03:00]}  d5 {[%clk 0:03:01]} 8. dxe5 {[%clk 0:03:00]}  Be6 {[%clk 0:03:01]} 9. Nbd2 {[%clk 0:02:48]}  Nc5 {[%clk 0:03:00]} 10. c3 {[%clk 0:02:46]}  d4 {[%clk 0:02:58]} 11. Bxe6 {[%clk 0:02:44]}  Nxe6 {[%clk 0:02:59]} 12. cxd4 {[%clk 0:02:45]}  Ncxd4 {[%clk 0:02:59]} 13. a4 {[%clk 0:02:46]}  Bb4 {[%clk 0:02:47]} 14. axb5 {[%clk 0:02:45]}  Nxb5 {[%clk 0:02:46]} 15. Qa4 {[%clk 0:02:44]}  Bxd2 {[%clk 0:02:22]} 16. Bxd2 {[%clk 0:02:45]}  O-O {[%clk 0:02:22]} 17. Rfd1 {[%clk 0:02:39]}  Re8 {[%clk 0:02:19]} 18. h4 {[%clk 0:02:36]}  Qd5 {[%clk 0:02:16]} 19. Be3 {[%clk 0:02:28]}  Qb7 {[%clk 0:02:13]} 20. h5 {[%clk 0:02:28]}  c5 {[%clk 0:01:57]} 21. h6 {[%clk 0:02:27]}  g6 {[%clk 0:01:56]} 22. Qh4 {[%clk 0:01:54]}  Qe7 {[%clk 0:01:53]} 23. Qxe7 {[%clk 0:01:22]}  Rxe7 {[%clk 0:01:52]} 24. Rd5 {[%clk 0:01:22]}  Rc7 {[%clk 0:01:46]} 25. Rad1 {[%clk 0:00:59]}  Kf8 {[%clk 0:01:44]} 26. Ng5 {[%clk 0:00:53]}  Nxg5 {[%clk 0:01:30]} 27. Rd8+ {[%clk 0:00:37]}  Rxd8 {[%clk 0:01:29]} 28. Rxd8+ {[%clk 0:00:38]}  Ke7 {[%clk 0:01:30]} 29. Bxg5+ {[%clk 0:00:39]}  Ke6 {[%clk 0:01:30]} 30. Bf6 {[%clk 0:00:39]}  Nd4 {[%clk 0:01:24]} 31. Rh8 {[%clk 0:00:37]}  Nf5 {[%clk 0:00:50]} 32. Rxh7 {[%clk 0:00:38]}  Rc8 {[%clk 0:00:49]} 33. g4 {[%clk 0:00:38]}  Nd6 {[%clk 0:00:27]} 34. Rh8 {[%clk 0:00:21]}  Rxh8 {[%clk 0:00:21]} 35. Bxh8 {[%clk 0:00:22]}  Ne4 {[%clk 0:00:22]} 36. Bf6 {[%clk 0:00:15]} 1-0


[Site "https://www.chess.com"]

[Event "Titled Tuesday Blitz March 28 Early 2023"]
[White "Fiorito, Joaquin"]
[Black "Pakleza, Zbigniew"]
[WhiteFideId "180173"]
[BlackFideId "1119290"]
[WhiteElo "2157"]
[BlackElo "2410"]
[Result "0-1"]
[Round "02"]
[TimeControl "180+2"]
[Date "2023.03.28"]
[WhiteClock "0:00:16"]
[BlackClock "0:00:04"]

1. d4 {[%clk 0:03:00]}  d6 {[%clk 0:02:59]} 2. e4 {[%clk 0:03:00]}  Nf6 {[%clk 0:02:59]} 3. Nc3 {[%clk 0:02:58]}  c6 {[%clk 0:03:00]} 4. f4 {[%clk 0:02:58]}  Qb6 {[%clk 0:03:00]} 5. Nf3 {[%clk 0:02:56]}  Bg4 {[%clk 0:03:00]} 6. e5 {[%clk 0:02:24]}  Nd5 {[%clk 0:03:00]} 7. Nxd5 {[%clk 0:02:22]}  cxd5 {[%clk 0:03:01]} 8. c3 {[%clk 0:02:22]}  Nc6 {[%clk 0:03:01]} 9. h3 {[%clk 0:02:22]}  Bf5 {[%clk 0:03:00]} 10. Bd3 {[%clk 0:02:21]}  g6 {[%clk 0:03:01]} 11. Bxf5 {[%clk 0:02:19]}  gxf5 {[%clk 0:03:01]} 12. e6 {[%clk 0:02:16]}  fxe6 {[%clk 0:03:02]} 13. Ng5 {[%clk 0:02:17]}  Kd7 {[%clk 0:03:03]} 14. Qe2 {[%clk 0:02:13]}  Nd8 {[%clk 0:03:03]} 15. O-O {[%clk 0:02:12]}  h6 {[%clk 0:03:03]} 16. Nf3 {[%clk 0:02:00]}  Rg8 {[%clk 0:02:58]} 17. b4 {[%clk 0:01:47]}  Rc8 {[%clk 0:02:57]} 18. Bd2 {[%clk 0:01:46]}  Qa6 {[%clk 0:02:53]} 19. Qe3 {[%clk 0:01:31]}  Qc4 {[%clk 0:02:46]} 20. a4 {[%clk 0:01:27]}  Rg6 {[%clk 0:02:44]} 21. Nh4 {[%clk 0:01:26]}  Rf6 {[%clk 0:02:45]} 22. Rae1 {[%clk 0:01:24]}  a5 {[%clk 0:02:21]} 23. bxa5 {[%clk 0:01:21]}  Qxa4 {[%clk 0:02:22]} 24. g4 {[%clk 0:01:14]}  fxg4 {[%clk 0:01:59]} 25. hxg4 {[%clk 0:01:15]}  Qxa5 {[%clk 0:01:56]} 26. g5 {[%clk 0:00:54]}  Rf7 {[%clk 0:01:46]} 27. Ng6 {[%clk 0:00:52]}  Bg7 {[%clk 0:01:06]} 28. f5 {[%clk 0:00:47]}  exf5 {[%clk 0:00:28]} 29. gxh6 {[%clk 0:00:47]}  Bf6 {[%clk 0:00:24]} 30. Rxf5 {[%clk 0:00:45]}  Qa2 {[%clk 0:00:14]} 31. Rf2 {[%clk 0:00:32]}  Kc7 {[%clk 0:00:10]} 32. Qh3 {[%clk 0:00:23]}  Nc6 {[%clk 0:00:05]} 33. h7 {[%clk 0:00:21]}  Rg7 {[%clk 0:00:05]} 34. Rg2 {[%clk 0:00:20]}  Rxg6 {[%clk 0:00:06]} 35. Rxg6 {[%clk 0:00:20]}  Qxd2 {[%clk 0:00:06]} 36. Rf1 {[%clk 0:00:16]}  Nxd4 {[%clk 0:00:03]} 37. Rgxf6 {[%clk 0:00:15]}  Ne2+ {[%clk 0:00:02]} 38. Kh1 {[%clk 0:00:14]}  exf6 {[%clk 0:00:03]} 39. Qxc8+ {[%clk 0:00:15]}  Kxc8 {[%clk 0:00:03]} 40. h8=Q+ {[%clk 0:00:16]}  Kc7 {[%clk 0:00:04]} 41. Qg7+ {[%clk 0:00:16]}  Kc6 {[%clk 0:00:05]} 42. Qg2 {[%clk 0:00:15]}  Qh6+ {[%clk 0:00:03]} 43. Qh2 {[%clk 0:00:15]}  Ng3+ {[%clk 0:00:04]} 44. Kg2 {[%clk 0:00:16]}  Qxh2+ {[%clk 0:00:04]} 0-1


[Site "https://www.chess.com"]